{"text_format":"3","workbook":"xlsx","n_sheets":2,"sheets":["Παρακολούθηση Έργου","Ρύθμιση"],"not_rendered":{"defined_names":6},"read":"whole","date_system":"1900"}

{"sheet":"Παρακολούθηση Έργου","index":0,"n_rows":13,"n_cols":15,"rows_kept":13}
[null,"Παρακολούθηση Έργου"]
[null,null,"Ποσοστό υπέρβασης/μη συμπλήρωσης για προσθήκη σημαίας: ",{"v":0.25,"d":"25%"}]
[]
[null,"Έργο","Κατηγορία","Ανατέθηκε σε","Εκτιμώμενη\nΈναρξη","Εκτιμώμενη \nΟλοκλήρωση","Εκτιμώμενη εργασία \n(σε ώρες)","Εκτιμώμενη διάρκεια \n(σε ημέρες)","Πραγματική \nΈναρξη","Πραγματική\nΟλοκλήρωση","Εικονίδιο σημαίας για υπέρβαση/μη συμπλήρωση πραγματικής εργασίας (σε ώρες)","Πραγματική εργασία \n(σε ώρες)","Εικονίδιο σημαίας για υπέρβαση/μη συμπλήρωση πραγματικής διάρκειας (σε ημέρες)","Πραγματική διάρκεια \n(σε ημέρες)","Σημειώσεις"]
[null,"Έργο 1","Κατηγορία 1","Υπάλληλος 1",{"$f":"TODAY()-65","v":"2016-08-14"},{"$f":"TODAY()-5","v":"2016-10-13"},210,{"$f":"IF(COUNTA('Παρακολούθηση Έργου'!$E5,'Παρακολούθηση Έργου'!$F5)<>2,\"\",DAYS360('Παρακολούθηση Έργου'!$E5,'Παρακολούθηση Έργου'!$F5,FALSE))","v":59},{"$f":"TODAY()-65","v":"2016-08-14"},{"$f":"TODAY()","v":"2016-10-18"},{"$f":"IFERROR(IF(ΠαρακολούθησηΈργου[Πραγματική εργασία \n(σε ώρες)]=0,\"\",IF(ABS((ΠαρακολούθησηΈργου[[#This Row],[Πραγματική εργασία \n(σε ώρες)]]-ΠαρακολούθησηΈργου[[#This Row],[Εκτιμώμενη εργασία \n(σε ώρες)]])/ΠαρακολούθησηΈργου[[#This Row],[Εκτιμώμενη εργασία \n(σε ώρες)]])>ΠοσοστόΣημαιών,1,0)),\"\")","v":1},300,{"$f":"IFERROR(IF(ΠαρακολούθησηΈργου[Πραγματική διάρκεια \n(σε ημέρες)]=0,\"\",IF(ABS((ΠαρακολούθησηΈργου[[#This Row],[Πραγματική διάρκεια \n(σε ημέρες)]]-ΠαρακολούθησηΈργου[[#This Row],[Εκτιμώμενη διάρκεια \n(σε ημέρες)]])/ΠαρακολούθησηΈργου[[#This Row],[Εκτιμώμενη διάρκεια \n(σε ημέρες)]])>ΠοσοστόΣημαιών,1,0)),\"\")","v":0},{"$f":"IF(COUNTA('Παρακολούθηση Έργου'!$I5,'Παρακολούθηση Έργου'!$J5)<>2,\"\",DAYS360('Παρακολούθηση Έργου'!$I5,'Παρακολούθηση Έργου'!$J5,FALSE))","v":64}]
[null,"Έργο 2","Κατηγορία 2","Υπάλληλος 4",{"$f":"TODAY()-41","v":"2016-09-07"},{"$f":"TODAY()-10","v":"2016-10-08"},400,{"$f":"IF(COUNTA('Παρακολούθηση Έργου'!$E6,'Παρακολούθηση Έργου'!$F6)<>2,\"\",DAYS360('Παρακολούθηση Έργου'!$E6,'Παρακολούθηση Έργου'!$F6,FALSE))","v":31},{"$f":"TODAY()-41","v":"2016-09-07"},{"$f":"TODAY()-7","v":"2016-10-11"},{"$f":"IFERROR(IF(ΠαρακολούθησηΈργου[Πραγματική εργασία \n(σε ώρες)]=0,\"\",IF(ABS((ΠαρακολούθησηΈργου[[#This Row],[Πραγματική εργασία \n(σε ώρες)]]-ΠαρακολούθησηΈργου[[#This Row],[Εκτιμώμενη εργασία \n(σε ώρες)]])/ΠαρακολούθησηΈργου[[#This Row],[Εκτιμώμενη εργασία \n(σε ώρες)]])>ΠοσοστόΣημαιών,1,0)),\"\")","v":0},390,{"$f":"IFERROR(IF(ΠαρακολούθησηΈργου[Πραγματική διάρκεια \n(σε ημέρες)]=0,\"\",IF(ABS((ΠαρακολούθησηΈργου[[#This Row],[Πραγματική διάρκεια \n(σε ημέρες)]]-ΠαρακολούθησηΈργου[[#This Row],[Εκτιμώμενη διάρκεια \n(σε ημέρες)]])/ΠαρακολούθησηΈργου[[#This Row],[Εκτιμώμενη διάρκεια \n(σε ημέρες)]])>ΠοσοστόΣημαιών,1,0)),\"\")","v":0},{"$f":"IF(COUNTA('Παρακολούθηση Έργου'!$I6,'Παρακολούθηση Έργου'!$J6)<>2,\"\",DAYS360('Παρακολούθηση Έργου'!$I6,'Παρακολούθηση Έργου'!$J6,FALSE))","v":34}]
[null,"Έργο 3","Κατηγορία 1","Υπάλληλος 2",{"$f":"TODAY()-100","v":"2016-07-10"},{"$f":"TODAY()-40","v":"2016-09-08"},500,{"$f":"IF(COUNTA('Παρακολούθηση Έργου'!$E7,'Παρακολούθηση Έργου'!$F7)<>2,\"\",DAYS360('Παρακολούθηση Έργου'!$E7,'Παρακολούθηση Έργου'!$F7,FALSE))","v":58},{"$f":"TODAY()-100","v":"2016-07-10"},{"$f":"TODAY()-27","v":"2016-09-21"},{"$f":"IFERROR(IF(ΠαρακολούθησηΈργου[Πραγματική εργασία \n(σε ώρες)]=0,\"\",IF(ABS((ΠαρακολούθησηΈργου[[#This Row],[Πραγματική εργασία \n(σε ώρες)]]-ΠαρακολούθησηΈργου[[#This Row],[Εκτιμώμενη εργασία \n(σε ώρες)]])/ΠαρακολούθησηΈργου[[#This Row],[Εκτιμώμενη εργασία \n(σε ώρες)]])>ΠοσοστόΣημαιών,1,0)),\"\")","v":0},500,{"$f":"IFERROR(IF(ΠαρακολούθησηΈργου[Πραγματική διάρκεια \n(σε ημέρες)]=0,\"\",IF(ABS((ΠαρακολούθησηΈργου[[#This Row],[Πραγματική διάρκεια \n(σε ημέρες)]]-ΠαρακολούθησηΈργου[[#This Row],[Εκτιμώμενη διάρκεια \n(σε ημέρες)]])/ΠαρακολούθησηΈργου[[#This Row],[Εκτιμώμενη διάρκεια \n(σε ημέρες)]])>ΠοσοστόΣημαιών,1,0)),\"\")","v":0},{"$f":"IF(COUNTA('Παρακολούθηση Έργου'!$I7,'Παρακολούθηση Έργου'!$J7)<>2,\"\",DAYS360('Παρακολούθηση Έργου'!$I7,'Παρακολούθηση Έργου'!$J7,FALSE))","v":71}]
[null,"Έργο 4","Κατηγορία 2","Υπάλληλος 3",{"$f":"TODAY()-90","v":"2016-07-20"},{"$f":"TODAY()-80","v":"2016-07-30"},250,{"$f":"IF(COUNTA('Παρακολούθηση Έργου'!$E8,'Παρακολούθηση Έργου'!$F8)<>2,\"\",DAYS360('Παρακολούθηση Έργου'!$E8,'Παρακολούθηση Έργου'!$F8,FALSE))","v":10},{"$f":"TODAY()-90","v":"2016-07-20"},{"$f":"TODAY()-71","v":"2016-08-08"},{"$f":"IFERROR(IF(ΠαρακολούθησηΈργου[Πραγματική εργασία \n(σε ώρες)]=0,\"\",IF(ABS((ΠαρακολούθησηΈργου[[#This Row],[Πραγματική εργασία \n(σε ώρες)]]-ΠαρακολούθησηΈργου[[#This Row],[Εκτιμώμενη εργασία \n(σε ώρες)]])/ΠαρακολούθησηΈργου[[#This Row],[Εκτιμώμενη εργασία \n(σε ώρες)]])>ΠοσοστόΣημαιών,1,0)),\"\")","v":0},276,{"$f":"IFERROR(IF(ΠαρακολούθησηΈργου[Πραγματική διάρκεια \n(σε ημέρες)]=0,\"\",IF(ABS((ΠαρακολούθησηΈργου[[#This Row],[Πραγματική διάρκεια \n(σε ημέρες)]]-ΠαρακολούθησηΈργου[[#This Row],[Εκτιμώμενη διάρκεια \n(σε ημέρες)]])/ΠαρακολούθησηΈργου[[#This Row],[Εκτιμώμενη διάρκεια \n(σε ημέρες)]])>ΠοσοστόΣημαιών,1,0)),\"\")","v":1},{"$f":"IF(COUNTA('Παρακολούθηση Έργου'!$I8,'Παρακολούθηση Έργου'!$J8)<>2,\"\",DAYS360('Παρακολούθηση Έργου'!$I8,'Παρακολούθηση Έργου'!$J8,FALSE))","v":18}]
[null,"Έργο 5","Κατηγορία 3","Υπάλληλος 2",{"$f":"TODAY()-90","v":"2016-07-20"},{"$f":"TODAY()-50","v":"2016-08-29"},300,{"$f":"IF(COUNTA('Παρακολούθηση Έργου'!$E9,'Παρακολούθηση Έργου'!$F9)<>2,\"\",DAYS360('Παρακολούθηση Έργου'!$E9,'Παρακολούθηση Έργου'!$F9,FALSE))","v":39},{"$f":"TODAY()-90","v":"2016-07-20"},{"$f":"TODAY()-44","v":"2016-09-04"},{"$f":"IFERROR(IF(ΠαρακολούθησηΈργου[Πραγματική εργασία \n(σε ώρες)]=0,\"\",IF(ABS((ΠαρακολούθησηΈργου[[#This Row],[Πραγματική εργασία \n(σε ώρες)]]-ΠαρακολούθησηΈργου[[#This Row],[Εκτιμώμενη εργασία \n(σε ώρες)]])/ΠαρακολούθησηΈργου[[#This Row],[Εκτιμώμενη εργασία \n(σε ώρες)]])>ΠοσοστόΣημαιών,1,0)),\"\")","v":0},310,{"$f":"IFERROR(IF(ΠαρακολούθησηΈργου[Πραγματική διάρκεια \n(σε ημέρες)]=0,\"\",IF(ABS((ΠαρακολούθησηΈργου[[#This Row],[Πραγματική διάρκεια \n(σε ημέρες)]]-ΠαρακολούθησηΈργου[[#This Row],[Εκτιμώμενη διάρκεια \n(σε ημέρες)]])/ΠαρακολούθησηΈργου[[#This Row],[Εκτιμώμενη διάρκεια \n(σε ημέρες)]])>ΠοσοστόΣημαιών,1,0)),\"\")","v":0},{"$f":"IF(COUNTA('Παρακολούθηση Έργου'!$I9,'Παρακολούθηση Έργου'!$J9)<>2,\"\",DAYS360('Παρακολούθηση Έργου'!$I9,'Παρακολούθηση Έργου'!$J9,FALSE))","v":44}]
[null,"Έργο 6","Κατηγορία 4","Υπάλληλος 4",{"$f":"TODAY()-60","v":"2016-08-19"},{"$f":"TODAY()-50","v":"2016-08-29"},500,{"$f":"IF(COUNTA('Παρακολούθηση Έργου'!$E10,'Παρακολούθηση Έργου'!$F10)<>2,\"\",DAYS360('Παρακολούθηση Έργου'!$E10,'Παρακολούθηση Έργου'!$F10,FALSE))","v":10},{"$f":"TODAY()-60","v":"2016-08-19"},{"$f":"TODAY()-45","v":"2016-09-03"},{"$f":"IFERROR(IF(ΠαρακολούθησηΈργου[Πραγματική εργασία \n(σε ώρες)]=0,\"\",IF(ABS((ΠαρακολούθησηΈργου[[#This Row],[Πραγματική εργασία \n(σε ώρες)]]-ΠαρακολούθησηΈργου[[#This Row],[Εκτιμώμενη εργασία \n(σε ώρες)]])/ΠαρακολούθησηΈργου[[#This Row],[Εκτιμώμενη εργασία \n(σε ώρες)]])>ΠοσοστόΣημαιών,1,0)),\"\")","v":0},510,{"$f":"IFERROR(IF(ΠαρακολούθησηΈργου[Πραγματική διάρκεια \n(σε ημέρες)]=0,\"\",IF(ABS((ΠαρακολούθησηΈργου[[#This Row],[Πραγματική διάρκεια \n(σε ημέρες)]]-ΠαρακολούθησηΈργου[[#This Row],[Εκτιμώμενη διάρκεια \n(σε ημέρες)]])/ΠαρακολούθησηΈργου[[#This Row],[Εκτιμώμενη διάρκεια \n(σε ημέρες)]])>ΠοσοστόΣημαιών,1,0)),\"\")","v":1},{"$f":"IF(COUNTA('Παρακολούθηση Έργου'!$I10,'Παρακολούθηση Έργου'!$J10)<>2,\"\",DAYS360('Παρακολούθηση Έργου'!$I10,'Παρακολούθηση Έργου'!$J10,FALSE))","v":14}]
[null,"Έργο 7","Κατηγορία 5","Υπάλληλος 1",{"$f":"TODAY()-44","v":"2016-09-04"},{"$f":"TODAY()-20","v":"2016-09-28"},750,{"$f":"IF(COUNTA('Παρακολούθηση Έργου'!$E11,'Παρακολούθηση Έργου'!$F11)<>2,\"\",DAYS360('Παρακολούθηση Έργου'!$E11,'Παρακολούθηση Έργου'!$F11,FALSE))","v":24},{"$f":"TODAY()-44","v":"2016-09-04"},{"$f":"TODAY()-15","v":"2016-10-03"},{"$f":"IFERROR(IF(ΠαρακολούθησηΈργου[Πραγματική εργασία \n(σε ώρες)]=0,\"\",IF(ABS((ΠαρακολούθησηΈργου[[#This Row],[Πραγματική εργασία \n(σε ώρες)]]-ΠαρακολούθησηΈργου[[#This Row],[Εκτιμώμενη εργασία \n(σε ώρες)]])/ΠαρακολούθησηΈργου[[#This Row],[Εκτιμώμενη εργασία \n(σε ώρες)]])>ΠοσοστόΣημαιών,1,0)),\"\")","v":0},790,{"$f":"IFERROR(IF(ΠαρακολούθησηΈργου[Πραγματική διάρκεια \n(σε ημέρες)]=0,\"\",IF(ABS((ΠαρακολούθησηΈργου[[#This Row],[Πραγματική διάρκεια \n(σε ημέρες)]]-ΠαρακολούθησηΈργου[[#This Row],[Εκτιμώμενη διάρκεια \n(σε ημέρες)]])/ΠαρακολούθησηΈργου[[#This Row],[Εκτιμώμενη διάρκεια \n(σε ημέρες)]])>ΠοσοστόΣημαιών,1,0)),\"\")","v":0},{"$f":"IF(COUNTA('Παρακολούθηση Έργου'!$I11,'Παρακολούθηση Έργου'!$J11)<>2,\"\",DAYS360('Παρακολούθηση Έργου'!$I11,'Παρακολούθηση Έργου'!$J11,FALSE))","v":29}]
[null,"Έργο 8","Κατηγορία 2","Υπάλληλος 1",{"$f":"TODAY()-39","v":"2016-09-09"},{"$f":"TODAY()","v":"2016-10-18"},450,{"$f":"IF(COUNTA('Παρακολούθηση Έργου'!$E12,'Παρακολούθηση Έργου'!$F12)<>2,\"\",DAYS360('Παρακολούθηση Έργου'!$E12,'Παρακολούθηση Έργου'!$F12,FALSE))","v":39},{"$f":"TODAY()-45","v":"2016-09-03"},{"$f":"TODAY()-5","v":"2016-10-13"},{"$f":"IFERROR(IF(ΠαρακολούθησηΈργου[Πραγματική εργασία \n(σε ώρες)]=0,\"\",IF(ABS((ΠαρακολούθησηΈργου[[#This Row],[Πραγματική εργασία \n(σε ώρες)]]-ΠαρακολούθησηΈργου[[#This Row],[Εκτιμώμενη εργασία \n(σε ώρες)]])/ΠαρακολούθησηΈργου[[#This Row],[Εκτιμώμενη εργασία \n(σε ώρες)]])>ΠοσοστόΣημαιών,1,0)),\"\")","v":0},430,{"$f":"IFERROR(IF(ΠαρακολούθησηΈργου[Πραγματική διάρκεια \n(σε ημέρες)]=0,\"\",IF(ABS((ΠαρακολούθησηΈργου[[#This Row],[Πραγματική διάρκεια \n(σε ημέρες)]]-ΠαρακολούθησηΈργου[[#This Row],[Εκτιμώμενη διάρκεια \n(σε ημέρες)]])/ΠαρακολούθησηΈργου[[#This Row],[Εκτιμώμενη διάρκεια \n(σε ημέρες)]])>ΠοσοστόΣημαιών,1,0)),\"\")","v":0},{"$f":"IF(COUNTA('Παρακολούθηση Έργου'!$I12,'Παρακολούθηση Έργου'!$J12)<>2,\"\",DAYS360('Παρακολούθηση Έργου'!$I12,'Παρακολούθηση Έργου'!$J12,FALSE))","v":40}]
[null,"Έργο 9","Κατηγορία 4","Υπάλληλος 1","2016-02-05","2016-06-09",250,{"$f":"IF(COUNTA('Παρακολούθηση Έργου'!$E13,'Παρακολούθηση Έργου'!$F13)<>2,\"\",DAYS360('Παρακολούθηση Έργου'!$E13,'Παρακολούθηση Έργου'!$F13,FALSE))","v":124},"2016-03-05","2016-05-05",{"$f":"IFERROR(IF(ΠαρακολούθησηΈργου[Πραγματική εργασία \n(σε ώρες)]=0,\"\",IF(ABS((ΠαρακολούθησηΈργου[[#This Row],[Πραγματική εργασία \n(σε ώρες)]]-ΠαρακολούθησηΈργου[[#This Row],[Εκτιμώμενη εργασία \n(σε ώρες)]])/ΠαρακολούθησηΈργου[[#This Row],[Εκτιμώμενη εργασία \n(σε ώρες)]])>ΠοσοστόΣημαιών,1,0)),\"\")","v":0},200,{"$f":"IFERROR(IF(ΠαρακολούθησηΈργου[Πραγματική διάρκεια \n(σε ημέρες)]=0,\"\",IF(ABS((ΠαρακολούθησηΈργου[[#This Row],[Πραγματική διάρκεια \n(σε ημέρες)]]-ΠαρακολούθησηΈργου[[#This Row],[Εκτιμώμενη διάρκεια \n(σε ημέρες)]])/ΠαρακολούθησηΈργου[[#This Row],[Εκτιμώμενη διάρκεια \n(σε ημέρες)]])>ΠοσοστόΣημαιών,1,0)),\"\")","v":1},{"$f":"IF(COUNTA('Παρακολούθηση Έργου'!$I13,'Παρακολούθηση Έργου'!$J13)<>2,\"\",DAYS360('Παρακολούθηση Έργου'!$I13,'Παρακολούθηση Έργου'!$J13,FALSE))","v":60}]

{"sheet":"Ρύθμιση","index":1,"n_rows":10,"n_cols":3,"rows_kept":10}
[null,"Ρύθμιση"]
[]
[]
[null,"Όνομα κατηγορίας","Όνομα υπαλλήλου"]
[null,"Κατηγορία 1","Υπάλληλος 1"]
[null,"Κατηγορία 2","Υπάλληλος 2"]
[null,"Κατηγορία 3","Υπάλληλος 3"]
[null,"Κατηγορία 4","Υπάλληλος 4"]
[null,"Κατηγορία 5","Υπάλληλος 5"]
[null,"Κατηγορία 6","Υπάλληλος 6"]